fUST/lending_fUST_20260130
["ID","MTS","AMOUNT","RATE_DAILY","PERIOD"]
[404002063,1769707840444,-500.0,0.00013273,2]
[404002065,1769707840453,-500.0,0.00013273,2]
[404002067,1769707840462,-500.0,0.00013273,2]
[404002069,1769707840471,-500.0,0.00013273,2]
[404002071,1769707840481,-500.0,0.00013273,2]
[404002073,1769707840491,-500.0,0.00013273,2]
[404002075,1769707840500,-500.0,0.00013273,2]
[404002077,1769707840509,-500.0,0.00013273,2]
[404002079,1769707840519,-500.0,0.00013273,2]
[404002081,1769707840529,-500.0,0.00013273,2]
[404002083,1769707840538,-500.0,0.00013273,2]
[404002085,1769707840547,-246.49592524,0.00013273,2]
[404002087,1769707840556,-500.0,0.00013273,2]
[404002089,1769707840565,-500.0,0.00013273,2]
[404002091,1769707840574,-425.98360596,0.00013273,2]
[404002093,1769707840584,-262.05893517,0.00013273,2]
[404002095,1769707840593,-500.0,0.00013273,2]
[404002097,1769707840603,-500.0,0.00013273,2]
[404002099,1769707840613,-500.0,0.00013273,2]
[404002100,1769707840625,-500.0,0.00013273,2]
[404002102,1769707840634,-823.0,0.0001328,2]
[404002104,1769707840644,-158.66648975,0.00013673,2]
[404002107,1769707840655,-141.33351025,0.00013673,2]
[404002109,1769707840664,-1000.0,0.00013681,2]
[404002110,1769707840673,-500.0,0.00013698,2]
[404002112,1769707840683,-500.0,0.00013698,2]
[404002114,1769707840692,-500.0,0.00013698,2]
[404002116,1769707840701,-500.0,0.00013698,2]
[404002119,1769707840711,-500.0,0.00013698,2]
[404002120,1769707840720,-500.0,0.00013698,2]
[404002122,1769707840729,-533.70108919,0.00013698,2]
[404002124,1769707840738,-500.0,0.00013698,2]
[404002126,1769707840748,-500.0,0.00013698,2]
[404002128,1769707840757,-500.0,0.00013698,2]
[404002130,1769707840766,-500.0,0.00013698,2]
[404002132,1769707840776,-500.0,0.00013698,2]
[404002134,1769707840786,-502.22690096,0.00013698,2]
[404002136,1769707840796,-883.74,0.00013698,2]
[404002138,1769707840805,-883.74,0.00013698,2]
[404002140,1769707840814,-883.74,0.00013698,2]
[404002142,1769707840823,-883.74,0.00013698,2]
[404002144,1769707840832,-883.74,0.00013698,2]
[404002146,1769707840843,-883.74,0.00013698,2]
[404002148,1769707840852,-500.0,0.00013698,2]
[404002150,1769707840862,-500.0,0.00013698,2]
[404002152,1769707840871,-500.0,0.00013698,2]
[404002154,1769707840880,-500.0,0.00013698,2]
[404002156,1769707840890,-500.0,0.00013698,2]
[404002158,1769707840899,-500.0,0.00013698,2]
[404002160,1769707840908,-500.0,0.00013698,2]
[404002162,1769707840916,-518.94139039,0.00013698,2]
[404002164,1769707840926,-530.03606409,0.00013698,2]
[404002166,1769707840936,-500.0,0.00013698,2]
[404002168,1769707840945,-500.0,0.00013698,2]
[404002170,1769707840955,-500.0,0.00013698,2]
[404002172,1769707840964,-500.0,0.00013698,2]
[404002174,1769707840973,-500.0,0.00013698,2]
[404002176,1769707840982,-500.0,0.00013698,2]
[404002178,1769707840992,-500.0,0.00013698,2]
[404002180,1769707841001,-500.0,0.00013698,2]
[404002181,1769707841010,-500.0,0.00013698,2]
[404002183,1769707841019,-500.0,0.00013698,2]
[404002185,1769707841028,-1000.0,0.00013699,2]
[404002187,1769707841037,-500.0,0.00013699,2]
[404002189,1769707841047,-500.0,0.00013699,2]
[404002191,1769707841055,-500.0,0.00013699,2]
[404002193,1769707841065,-500.0,0.00013699,2]
[404002195,1769707841074,-500.0,0.00013699,2]
[404002197,1769707841084,-505.40496948,0.00013699,2]
[404002199,1769707841095,-500.0,0.00013699,2]
[404002201,1769707841104,-501.60095283,0.00013699,2]
[404002203,1769707841113,-500.84679195,0.00013699,2]
[404002205,1769707841124,-500.0,0.00013699,2]
[404002207,1769707841135,-500.0,0.00013699,2]
[404002209,1769707841145,-444.83278886,0.00013699,2]
[404002211,1769707841154,-433.66109963,0.00013699,2]
[404002213,1769707841163,-500.0,0.00013699,2]
[404002215,1769707841172,-500.0,0.00013699,2]
[404002216,1769707841182,-500.0,0.00013699,2]
[404002217,1769707841191,-500.0,0.00013699,2]
[404002218,1769707841199,-500.0,0.00013699,2]
[404002219,1769707841208,-500.0,0.00013699,2]
[404002220,1769707841216,-500.0,0.0001382,2]
[404002221,1769707841225,-399.87672354,0.00013821,2]
[404002222,1769707841234,-636.43381346,0.00013821,2]
[404002223,1769707841243,-997.74340674,0.00013821,2]
[404002224,1769707841251,-502.06898287,0.00013821,2]
[404002225,1769707841260,-427.66715482,0.00013821,2]
[404002226,1769707841270,-1009.21152379,0.00013821,2]
[404002227,1769707841279,-501.40141245,0.00013821,2]
[404002228,1769707841287,-500.0,0.00013821,2]
[404002229,1769707841296,-1000.0,0.00013821,2]
[404002230,1769707841305,-1000.0,0.00013821,2]
[404002231,1769707841315,-1000.0,0.00013821,2]
[404002232,1769707841325,-316.97781624,0.00013821,2]
[404002233,1769707841334,-1000.0,0.00013821,2]
[404002234,1769707841343,-1000.0,0.00013821,2]
[404002235,1769707841353,-1000.0,0.00013821,2]
[404002236,1769707841362,-1000.0,0.00013821,2]
[404002237,1769707841371,-1000.0,0.00013821,2]
[404002238,1769707841380,-1000.0,0.00013821,2]
[404002239,1769707841390,-1002.84198919,0.00013821,2]
[404002240,1769707841399,-1000.0,0.00013821,2]
[404002241,1769707841407,-1000.0,0.00013821,2]
[404002242,1769707841417,-1000.0,0.00013821,2]
[404002243,1769707841426,-951.8102882,0.00013821,2]
[404002244,1769707841435,-1002.121625,0.00013821,2]
[404002245,1769707841444,-1000.0,0.00013821,2]
[404002246,1769707841453,-500.0,0.00013821,2]
[404002248,1769707841463,-152.49167372,0.00013821,2]
[404002250,1769707841472,-1002.30333023,0.00013821,2]
[404002252,1769707841482,-711.72145418,0.00013821,2]
[404002254,1769707841492,-994.64238661,0.00013821,2]
[404002256,1769707841502,-883.74,0.00013835,2]
[404002258,1769707841512,-1000.0,0.00013973,2]
[404002260,1769707841521,-204.0,0.00013976,2]
[404002262,1769707841530,-300.0,0.00014221,2]
[404002264,1769707841539,-1000.0,0.00014247,2]
[404002266,1769707841549,-592.85387235,0.00014247,2]
[404002268,1769707841558,-1000.0,0.00014247,2]
[404002270,1769707841567,-160.9968606,0.00014247,2]
[404002272,1769707841576,-500.0,0.00014247,2]
[404002274,1769707841587,-500.0,0.00014247,2]
[404002276,1769707841596,-1000.0,0.00014247,2]
[404002278,1769707841605,-262.62328597,0.00014247,2]
[404002416,1769707844857,-237.37671403,0.00014247,2]
[404002417,1769707844867,-500.0,0.00014247,2]
[404002418,1769707844876,-500.0,0.00014247,2]
[404002419,1769707844886,-762.62328597,0.00014247,2]
[404002420,1769707844912,-237.37671403,0.00014247,2]
[404002422,1769707844922,-532.3582484,0.00014247,2]
[404002423,1769707844931,-508.31156326,0.00014247,2]
[404002424,1769707844940,-500.0,0.00014247,2]
[404002425,1769707844949,-500.0,0.00014368,2]
[404002426,1769707844958,-1500.0,0.00014368,2]
[404002427,1769707844968,-1500.0,0.00014368,2]
[404002429,1769707844977,-1500.0,0.00014368,2]
[404002430,1769707844987,-1500.0,0.00014368,2]
[404002431,1769707844997,-1500.0,0.00014368,2]
[404002432,1769707845007,-131.73420744,0.00014368,2]
[404002433,1769707845019,-765.88977025,0.00014368,2]
[404002434,1769707845028,-884.82582551,0.00014368,2]
[404002435,1769707845039,-615.17417449,0.00014368,2]
[404002436,1769707845049,-855.419529,0.00014368,2]
[404002437,1769707845059,-1500.0,0.00014368,2]
[404002438,1769707845068,-1500.0,0.00014368,2]
[404002439,1769707845078,-1004.66008898,0.00014368,2]
[404002440,1769707845088,-1500.0,0.00014368,2]
[404002441,1769707845097,-167.59538682,0.00014384,2]
[404002442,1769707845107,-500.0,0.00014447,2]
[404002443,1769707845117,-500.0,0.00014447,2]
[404002444,1769707845126,-500.0,0.00014447,2]
[404002445,1769707845136,-500.0,0.00014447,2]
[404002446,1769707845145,-20078.99561157,0.00014447,2]
[404002447,1769707845157,-792.31526139,0.00014447,2]
[404002460,1769707846100,-496.36917147,0.00014447,2]
[404002461,1769707846112,-652.0,0.00014447,2]
[404002462,1769707846157,-2764.31915626,0.00014447,2]
[404002465,1769707912019,-0.01,9.878e-05,2]
[404002466,1769707912182,-10000.01,9.878e-05,2]
[404002467,1769707912292,-10000.01,9.878e-05,2]
[404002468,1769707912648,-10000.01,9.878e-05,2]
[404002469,1769707912770,-10000.01,9.878e-05,2]
[404002470,1769707912910,-10000.01,9.878e-05,2]
[404002471,1769707913037,-10000.01,9.878e-05,2]
[404002472,1769707913172,-10000.01,9.878e-05,2]
[404002473,1769707913284,-10000.01,9.878e-05,2]
[404002474,1769707915329,-10000.01,9.878e-05,2]
[404002475,1769707921681,-10000.01,9.878e-05,2]
[404002476,1769707921764,-10000.01,9.878e-05,2]
[404002477,1769707921882,-10000.01,9.878e-05,2]
[404002478,1769707921996,-10000.01,9.878e-05,2]
[404002479,1769707922108,-10000.01,9.878e-05,2]
[404002480,1769707922418,-10000.01,9.878e-05,2]
[404002481,1769707922570,-10000.01,9.878e-05,2]
[404002482,1769707922690,-10000.01,9.878e-05,2]
[404002483,1769707929766,-300.0,9.778e-05,2]
[404002484,1769707929789,-300.0,9.877e-05,2]
[404002485,1769707929816,-675.33898826,9.878e-05,2]
[404002486,1769707935262,1803.60651086,9.742e-05,2]
[404002487,1769707950110,5000.0,9.742e-05,2]
[404002488,1769707957946,395.0953393,9.483e-05,2]
[404002489,1769707972007,2801.30814984,9.742e-05,2]
[404002490,1769707972029,1898.69185016,9.742e-05,2]
[404002491,1769708052510,5000.0,9.742e-05,2]
[404002492,1769708075210,3101.31814984,9.742e-05,2]
[404002493,1769708075238,1898.68185016,9.742e-05,2]
[404002494,1769708097466,5000.0,9.742e-05,2]
[404002495,1769708119661,3101.32814984,9.742e-05,2]
[404002496,1769708119687,1898.67185016,9.742e-05,2]
[404002497,1769708136079,459.76682453,9.455e-05,2]
[404002498,1769708141942,5000.0,9.742e-05,2]
[404002499,1769708164320,2641.57132531,9.742e-05,2]
[404002500,1769708164345,2358.42867469,9.742e-05,2]
[404002501,1769708171164,-300.0,9.876e-05,2]
[404002502,1769708187029,-7641.58132531,9.877e-05,2]
[404002503,1769708187069,5000.0,9.877e-05,2]
[404002504,1769708187124,-5000.01,9.877e-05,2]
[404002505,1769708187244,-10000.01,9.877e-05,2]
[404002506,1769708190294,-10000.01,9.877e-05,2]
[404002507,1769708190422,-10000.01,9.877e-05,2]
[404002508,1769708190539,-2641.63132531,9.877e-05,2]
[404002509,1769708190563,-4716.74734938,9.877e-05,2]
[404002510,1769708190647,-500.0,9.877e-05,2]
[404002511,1769708190676,-152.49813814,9.877e-05,2]
[404002512,1769708190708,-500.0,9.877e-05,2]
[404002513,1769708190738,-154.90532946,9.877e-05,2]
[404002514,1769708190768,-500.0,9.877e-05,2]
[404002515,1769708190799,-296.32429182,9.877e-05,2]
[404002516,1769708190831,-500.0,9.877e-05,2]
[404002517,1769708190860,-500.0,9.877e-05,2]
[404002518,1769708190888,-500.0,9.877e-05,2]
[404002519,1769708190918,-500.0,9.877e-05,2]
[404002520,1769708190947,-500.0,9.877e-05,2]
[404002521,1769708190976,-292.55448116,9.877e-05,2]
[404002522,1769708191147,-207.44551884,9.877e-05,2]
[404002523,1769708199202,-500.0,9.877e-05,2]
[404002524,1769708199230,-500.0,9.877e-05,2]
[404002525,1769708199261,-500.0,9.877e-05,2]
[404002526,1769708199290,-500.0,9.877e-05,2]
[404002527,1769708199319,-500.0,9.877e-05,2]
[404002528,1769708199347,-500.0,9.877e-05,2]
[404002529,1769708199376,-500.0,9.877e-05,2]
[404002530,1769708199404,-500.0,9.877e-05,2]
[404002531,1769708199433,-500.0,9.877e-05,2]
[404002532,1769708199462,-500.0,9.877e-05,2]
[404002533,1769708199576,-500.0,9.877e-05,2]
[404002534,1769708199605,-500.0,9.877e-05,2]
[404002535,1769708199634,-500.0,9.877e-05,2]
[404002536,1769708199664,-500.0,9.877e-05,2]
[404002537,1769708199694,-500.0,9.877e-05,2]
[404002538,1769708199726,-500.0,9.877e-05,2]
[404002539,1769708199756,-500.0,9.877e-05,2]
[404002540,1769708199785,-500.0,9.877e-05,2]
[404002541,1769708199816,-500.0,9.877e-05,2]
[404002542,1769708199845,-500.0,9.877e-05,2]
[404002543,1769708199953,-500.0,9.877e-05,2]
[404002544,1769708199985,-500.0,9.877e-05,2]
[404002545,1769708200019,-500.0,9.877e-05,2]
[404002546,1769708200048,-500.0,9.877e-05,2]
[404002547,1769708200076,-500.0,9.877e-05,2]
[404002548,1769708200106,-500.0,9.877e-05,2]
[404002549,1769708200136,-500.0,9.877e-05,2]
[404002550,1769708200166,-500.0,9.877e-05,2]
[404002551,1769708200194,-500.0,9.877e-05,2]
[404002552,1769708200223,-500.0,9.877e-05,2]
[404002553,1769708200307,-177.03229,9.877e-05,2]
[404002554,1769708200338,-500.0,9.877e-05,2]
[404002555,1769708200367,-500.0,9.877e-05,2]
[404002556,1769708200396,-500.0,9.877e-05,2]
[404002557,1769708200426,-500.0,9.877e-05,2]
[404002558,1769708200455,-607.70122292,9.877e-05,2]
[404002559,1769708200485,-500.0,9.877e-05,2]
[404002560,1769708200517,-500.0,9.877e-05,2]
[404002561,1769708200547,-500.0,9.877e-05,2]
[404002562,1769708200576,-500.0,9.877e-05,2]
[404002563,1769708201080,-0.03,9.877e-05,2]
[404002564,1769708201094,-430.54297416,9.877e-05,2]
[404002565,1769708214397,-10000.01,9.779e-05,2]
[404002566,1769708214502,-1978.44194966,9.779e-05,2]
[404002567,1769708214527,-6043.12610068,9.779e-05,2]
[404002568,1769708232429,5000.0,9.779e-05,2]
[404002569,1769708246150,-299.99,9.876e-05,2]
[404002570,1769708255291,5000.0,9.779e-05,2]
[404002571,1769708274659,0.01,8.951e-05,2]
[404002572,1769708274683,10000.01,8.951e-05,2]
[404002573,1769708274706,9803.111258,8.951e-05,2]
[404002574,1769708285174,1061.11765036,9.742e-05,2]
[404002575,1769708371182,-207.93064547,9.777e-05,2]
[404002576,1769708371210,-4584.14870906,9.779e-05,2]
[404002577,1769708371795,-415.85129094,9.779e-05,2]
[404002578,1769708371824,-300.0,9.875e-05,2]
[404002579,1769708371853,-164.30443264,9.875e-05,2]
[404002580,1769708371882,-709.50271891,9.875e-05,2]
[404002581,1769708371911,-709.50271891,9.875e-05,2]
[404002582,1769708371938,-709.50271891,9.875e-05,2]
[404002583,1769708371965,-709.50271891,9.875e-05,2]
[404002584,1769708371992,-709.50271891,9.875e-05,2]
[404002585,1769708372019,-435.16864483,9.875e-05,2]
[404002586,1769708372142,-274.33407408,9.875e-05,2]
[404002587,1769708372170,-709.50271891,9.875e-05,2]
[404002588,1769708372198,-709.50271891,9.875e-05,2]
[404002589,1769708372225,-709.50271891,9.875e-05,2]
[404002590,1769708372252,-709.50271891,9.875e-05,2]
[404002591,1769708372280,-709.50271891,9.875e-05,2]
[404002592,1769708372308,-709.50271891,9.875e-05,2]
[404002593,1769708372334,-227.80650601,9.875e-05,2]
[404002594,1769708374147,-481.6962129,9.875e-05,2]
[404002595,1769708374175,-709.50271891,9.875e-05,2]
[404002596,1769708374204,-709.50271891,9.875e-05,2]
[404002597,1769708374232,-709.50271891,9.875e-05,2]
[404002598,1769708374259,-709.50271891,9.875e-05,2]
[404002599,1769708374286,-709.50271891,9.875e-05,2]
[404002600,1769708374313,-709.50271891,9.875e-05,2]
[404002601,1769708374492,-709.50271891,9.875e-05,2]
[404002602,1769708374520,-709.50271891,9.875e-05,2]
[404002603,1769708374548,-709.50271891,9.875e-05,2]
[404002604,1769708374577,-709.50271891,9.875e-05,2]
[404002605,1769708374605,-709.50271891,9.875e-05,2]
[404002606,1769708374632,-709.50271891,9.875e-05,2]
[404002607,1769708374659,-709.50271891,9.875e-05,2]
[404002608,1769708377449,-709.50271891,9.875e-05,2]
[404002609,1769708377480,-709.50271891,9.875e-05,2]
[404002610,1769708377511,-709.50271891,9.875e-05,2]
[404002611,1769708377539,-709.50271891,9.875e-05,2]
[404002612,1769708377568,-709.50271891,9.875e-05,2]
[404002613,1769708377596,-709.50271891,9.875e-05,2]
[404002614,1769708377626,-709.50271891,9.875e-05,2]
[404002615,1769708377940,-709.50271891,9.875e-05,2]
[404002616,1769708377970,-709.50271891,9.875e-05,2]
[404002617,1769708377999,-709.50271891,9.875e-05,2]
[404002618,1769708378029,-709.50271891,9.875e-05,2]
[404002619,1769708378060,-709.50271891,9.875e-05,2]
[404002620,1769708378091,-709.50271891,9.875e-05,2]
[404002621,1769708378121,-709.50271891,9.875e-05,2]
[404002622,1769708402179,-1031.16342262,9.777e-05,2]
[404002623,1769708405273,-300.0,9.776e-05,2]
[404002624,1769708405303,-300.0,9.776e-05,2]
[404002625,1769708405352,-8800.01,9.777e-05,2]
[404002626,1769708427147,-1200.0,9.678e-05,2]
[404002627,1769708436821,4800.0,9.678e-05,2]
[404002628,1769708458168,-200.36781346,9.396e-05,2]
[404002629,1769708505607,-178.786,9.681e-05,2]
[404002630,1769708523869,-453.546,9.681e-05,2]
[404002631,1769708587292,-1500.0,9.678e-05,2]
[404002632,1769708601154,5000.0,9.678e-05,2]
[404002633,1769708624367,-1200.0,9.581e-05,2]
[404002634,1769708624399,-1200.0,9.678e-05,2]
[404002635,1769708632359,1481.4612486,9.678e-05,2]
[404002636,1769708656380,-539.02393686,9.678e-05,2]
[404002637,1769708656654,-960.97606314,9.678e-05,2]
[404002638,1769708658006,-721.37183512,9.776e-05,2]
[404002639,1769708660204,-355.64752824,9.776e-05,2]
[404002640,1769708662305,-122.98063664,9.776e-05,2]
[404002641,1769708662328,-29.3349887,9.776e-05,2]
[404002642,1769708666026,-270.6650113,9.776e-05,2]
[404002643,1769708666048,-41.89087317,9.777e-05,2]
[404002644,1769708668086,-300.0,9.777e-05,2]
[404002645,1769708670587,5000.0,9.678e-05,2]
[404002646,1769708679777,-170.28303046,8.952e-05,2]
[404002647,1769708681418,-304.54,8.952e-05,2]
[404002648,1769708682895,-205.05180049,8.952e-05,2]
[404002649,1769708685096,-289.49398879,8.952e-05,2]
[404002650,1769708686334,-969.37881974,8.952e-05,2]
[404002651,1769708686573,-1938.75763948,8.952e-05,2]
[404002652,1769708686674,-3877.51527896,8.952e-05,2]
[404002653,1769708686734,-147.26527504,8.952e-05,2]
[404002654,1769708686977,-2097.71416704,8.952e-05,2]
[404002655,1769708701735,-5000.0,9.678e-05,2]
[404002656,1769708715525,0.01,9.678e-05,2]
[404002657,1769708715549,4999.99,9.678e-05,2]
[404002658,1769708748713,-300.0,9.677e-05,2]
[404002659,1769708760724,5000.0,9.677e-05,2]
[404002675,1769708795319,-300.0,9.677e-05,2]
[404002676,1769708805629,5000.0,9.677e-05,2]
[404002677,1769708845444,-300.0,9.676e-05,2]
[404002678,1769708850651,5000.0,9.676e-05,2]
[404002679,1769708862155,-228.17041176,9.774e-05,2]
[404002680,1769708864320,-71.82958824,9.774e-05,2]
[404002681,1769708864342,-129.07519609,9.775e-05,2]
[404002682,1769708882699,-300.0,9.002e-05,2]
[404002683,1769708882729,-300.0,9.677e-05,2]
[404002684,1769708882992,-8800.03,9.678e-05,2]
[404002685,1769708883095,-10000.01,9.678e-05,2]
[404002686,1769708883191,-10000.01,9.678e-05,2]
[404002687,1769708883339,-10000.01,9.678e-05,2]
[404002688,1769708883495,-10000.01,9.678e-05,2]
[404002689,1769708883609,-10000.01,9.678e-05,2]
[404002690,1769708883727,-10000.01,9.678e-05,2]
[404002691,1769708885075,-10000.01,9.678e-05,2]
[404002692,1769708885108,-10000.01,9.678e-05,2]
[404002693,1769708888234,-200.90478433,9.581e-05,2]
[404002694,1769708888265,-3725.78966964,9.678e-05,2]
[404002695,1769708889757,-86.51056237,9.775e-05,2]
[404002696,1769708889782,-500.0,9.775e-05,2]
[404002697,1769708889804,-114.26900619,9.775e-05,2]
[404002698,1769708893697,-285.32908462,9.775e-05,2]
[404002699,1769708895969,2146.62109206,9.678e-05,2]
[404002700,1769708895992,2385.43327255,9.678e-05,2]
[404002701,1769708896868,-100.40190919,9.775e-05,2]
[404002702,1769708896892,-429.17818577,9.775e-05,2]
[404002703,1769708900681,-70.82181423,9.775e-05,2]
[404002704,1769708900704,-211.01039488,9.775e-05,2]
[404002705,1769708903429,-243.40344553,9.775e-05,2]
[404002706,1769708905641,-45.58615959,9.775e-05,2]
[404002707,1769708905664,-280.89986871,9.775e-05,2]
[404002708,1769708907085,-219.10013129,9.775e-05,2]
[404002709,1769708907108,-307.72497671,9.775e-05,2]
[404002710,1769708908833,-184.43475781,9.775e-05,2]
[404002711,1769708910366,-7.84026548,9.775e-05,2]
[404002712,1769708910389,-292.96332526,9.775e-05,2]
[404002713,1769708911273,3078.67029689,9.678e-05,2]
[404002714,1769708913637,-300.05430543,9.775e-05,2]
[404002715,1769708933922,429.98789617,9.678e-05,2]
[404002716,1769708942264,1331.70581354,9.678e-05,2]
[404002756,1769709031769,-300.0,9.773e-05,2]
[404002758,1769709031779,-300.0,9.773e-05,2]
[404002760,1769709031788,-368.91284753,9.773e-05,2]
[404002762,1769709031800,-188.08715247,9.773e-05,2]
[404002764,1769709031809,-265.0,9.773e-05,2]
[404002766,1769709031818,-392.56284753,9.774e-05,2]
[404002773,1769709031876,-26651.8778555,9.774e-05,2]
[404002828,1769709038068,-2390.42116596,9.774e-05,2]
[404002829,1769709038079,-500.0,9.774e-05,2]
[404002831,1769709038090,-500.0,9.774e-05,2]
[404002832,1769709038100,-500.0,9.774e-05,2]
[404002833,1769709038110,-500.0,9.774e-05,2]
[404002834,1769709038120,-500.0,9.774e-05,2]
[404002835,1769709038130,-500.0,9.774e-05,2]
[404002836,1769709038140,-500.0,9.774e-05,2]
[404002837,1769709038150,-500.0,9.774e-05,2]
[404002838,1769709038162,-500.0,9.774e-05,2]
[404002839,1769709038171,-500.0,9.774e-05,2]
[404002840,1769709038183,-500.0,9.774e-05,2]
[404002841,1769709038192,-500.0,9.774e-05,2]
[404002842,1769709038202,-500.0,9.774e-05,2]
[404002843,1769709038212,-500.0,9.774e-05,2]
[404002844,1769709038221,-500.0,9.774e-05,2]
[404002845,1769709038232,-500.0,9.774e-05,2]
[404002846,1769709038242,-500.0,9.774e-05,2]
[404002847,1769709038253,-500.0,9.774e-05,2]
[404002848,1769709038263,-500.0,9.774e-05,2]
[404002849,1769709038272,-500.0,9.774e-05,2]
[404002850,1769709038282,-500.0,9.774e-05,2]
[404002851,1769709038293,-296.19839993,9.774e-05,2]
[404002852,1769709038302,-500.0,9.774e-05,2]
[404002853,1769709038313,-500.0,9.774e-05,2]
[404002854,1769709038323,-500.0,9.774e-05,2]
[404002855,1769709038334,-500.0,9.774e-05,2]
[404002856,1769709038345,-500.0,9.774e-05,2]
[404002857,1769709038355,-500.0,9.774e-05,2]
[404002858,1769709038367,-500.0,9.774e-05,2]
[404002859,1769709038377,-500.0,9.774e-05,2]
[404002860,1769709038387,-500.0,9.774e-05,2]
[404002861,1769709038397,-500.0,9.774e-05,2]
[404002862,1769709038407,-500.0,9.774e-05,2]
[404002863,1769709038416,-500.0,9.774e-05,2]
[404002864,1769709038426,-500.0,9.774e-05,2]
[404002865,1769709038435,-500.0,9.774e-05,2]
[404002866,1769709038444,-500.0,9.774e-05,2]
[404002867,1769709038454,-500.0,9.774e-05,2]
[404002868,1769709038464,-500.0,9.774e-05,2]
[404002869,1769709038473,-500.0,9.774e-05,2]
[404002870,1769709038483,-500.0,9.774e-05,2]
[404002871,1769709038494,-500.0,9.774e-05,2]
[404002872,1769709038504,-650.0,9.774e-05,2]
[404002873,1769709038514,-500.0,9.774e-05,2]
[404002874,1769709038524,-500.0,9.774e-05,2]
[404002875,1769709038534,-500.0,9.774e-05,2]
[404002876,1769709038544,-500.0,9.774e-05,2]
[404002877,1769709038554,-535.0,9.774e-05,2]
[404002878,1769709038563,-500.0,9.774e-05,2]
[404002879,1769709038574,-500.0,9.774e-05,2]
[404002880,1769709038583,-500.0,9.774e-05,2]
[404002881,1769709038592,-175.0,9.774e-05,2]
[404002882,1769709038602,-500.0,9.774e-05,2]
[404002883,1769709038612,-500.0,9.774e-05,2]
[404002884,1769709038621,-500.0,9.774e-05,2]
[404002885,1769709038631,-500.0,9.774e-05,2]
[404002886,1769709038640,-500.0,9.774e-05,2]
[404002887,1769709038650,-500.0,9.774e-05,2]
[404002888,1769709038660,-500.0,9.774e-05,2]
[404002889,1769709038670,-500.0,9.774e-05,2]
[404002890,1769709038679,-500.0,9.774e-05,2]
[404002891,1769709038688,-238.88316057,9.774e-05,2]
[404002892,1769709038697,-500.0,9.774e-05,2]
[404002893,1769709038706,-500.0,9.774e-05,2]
[404002894,1769709038715,-500.0,9.774e-05,2]
[404002895,1769709038724,-500.0,9.774e-05,2]
[404002896,1769709038734,-500.0,9.774e-05,2]
[404002897,1769709038743,-500.0,9.774e-05,2]
[404002898,1769709038753,-500.0,9.774e-05,2]
[404002899,1769709038764,-473.06726978,9.774e-05,2]
[404002900,1769709038774,-500.0,9.774e-05,2]
[404002901,1769709038784,-500.0,9.774e-05,2]
[404002902,1769709038795,-500.0,9.774e-05,2]
[404002903,1769709038804,-500.0,9.774e-05,2]
[404002904,1769709038814,-500.0,9.774e-05,2]
[404002905,1769709038824,-500.0,9.774e-05,2]
[404002906,1769709038834,-500.0,9.774e-05,2]
[404002907,1769709038843,-500.0,9.774e-05,2]
[404002908,1769709038853,-500.0,9.774e-05,2]
[404002909,1769709038862,-500.0,9.774e-05,2]
[404002910,1769709038873,-500.0,9.774e-05,2]
[404002911,1769709038883,-500.0,9.774e-05,2]
[404002912,1769709038892,-500.0,9.774e-05,2]
[404002913,1769709038902,-500.0,9.774e-05,2]
[404002914,1769709038912,-500.0,9.774e-05,2]
[404002915,1769709038922,-500.0,9.774e-05,2]
[404002916,1769709038931,-500.0,9.774e-05,2]
[404002917,1769709038942,-500.0,9.774e-05,2]
[404002918,1769709038952,-500.0,9.774e-05,2]
[404002919,1769709038963,-500.0,9.774e-05,2]
[404002920,1769709038973,-500.0,9.774e-05,2]
[404002921,1769709038982,-500.0,9.774e-05,2]
[404002922,1769709038993,-293.04145315,9.774e-05,2]
[404002923,1769709039010,-206.95854685,9.774e-05,2]
[404002924,1769709039020,-500.0,9.774e-05,2]
[404002925,1769709039030,-500.0,9.774e-05,2]
[404002926,1769709039042,-500.0,9.774e-05,2]